Cogmind - Beta 14 @@@ ROGUE MODE // 2024.08.13 @ 21:21:18 Player: Gaffe Result: Destroyed by G-50 Soldier with Heavy Laser Performance ------------- Evolutions (2) 1000 Regions Visited (5) 1000 Robots Destroyed (35) 175 Value Destroyed (1042) 1042 Prototype IDs (29) 580 Alien Tech Used (0) 0 Bonus (385) 385 TOTAL SCORE: 4182 Bonus ------- Follower Combat Kills 85 Aligned with FarCom 300 Cogmind --------- Core Integrity 0/550 Matter 240/300 Energy 42/100 System Corruption 4% Temperature Cool (9) Movement Core (400) Ox7 Location -8/Materials Parts ------- > --- POWER (1) -------- (None) > --- PROPULSION (3) --- (None) > --- UTILITY (5) ------ Medium Storage Unit Structural Scanner Machine Analyzer Signal Interpreter > --- WEAPON (2) ------- EM Pulse Cannon Ion Cannon > --- INVENTORY (10) --- High-capacity Storage Unit Compact Matter Pod (150) Modified TNC Chronowheel Field Laser Mining Claw Peak State ------------ > --- POWER ------------ Improved Ion Engine > --- PROPULSION ------- Aluminum Leg Aluminum Leg Aluminum Leg > --- UTILITY ---------- Medium Storage Unit Machine Analyzer Experimental Sensor Array Signal Interpreter Terrain Scanner > --- WEAPON ----------- Heavy Particle Gun Advanced EMP Blaster > --- INVENTORY -------- High-capacity Storage Unit Compact Matter Pod Structural Scanner Modified TNC Power Shielding Chronowheel Advanced Beam Rifle Assault Rifle Minigun [Rating: 31] Favorites ----------- Power Improved Ion Engine Engine Improved Ion Engine Propulsion Aluminum Leg Leg Aluminum Leg Wheel Compact Wheel Utility Signal Interpreter Device Structural Scanner Storage Medium Storage Unit Processor Signal Interpreter Protection Power Shielding Weapon Shotgun Energy Gun Medium Laser Energy Cannon EM Pulse Cannon Ballistic Gun Shotgun Launcher Rocket Launcher Slashing Weapon Mining Claw Build | -11 -10 -10 -10 -9 -8 ------- Run | Yrd Mat Min Exi Min Mat Slots Evolved 4 | . . . . . 4 Power . | . . . . . . Propulsion 1 | . . . . . 1 Utility 3 | . . . . . 3 Weapon . | . . . . . . Parts Attached 55 | 8 7 9 1 4 26 Power 5 | 1 . 1 . 1 2 Engine 5 | 1 . 1 . 1 2 Core . | . . . . . . Reactor . | . . . . . . Propulsion 15 | 3 . 5 . 1 6 Treads . | . . . . . . Leg 13 | 2 . 4 . 1 6 Wheel 2 | 1 . 1 . . . Hover . | . . . . . . Flight . | . . . . . . Utility 13 | 1 3 3 . . 6 Device 5 | . 2 . . . 3 Storage 4 | 1 1 2 . . . Processor 2 | . . 1 . . 1 Hackware . | . . . . . . Protection 2 | . . . . . 2 Artifact . | . . . . . . Weapon 22 | 3 4 . 1 2 12 Energy Gun 6 | 1 1 . . . 4 Energy Cannon 3 | . . . . . 3 Ballistic Gun 9 | 2 2 . 1 1 3 Ballistic Cannon . | . . . . . . Launcher 3 | . 1 . . 1 1 Special Weapon . | . . . . . . Impact Weapon . | . . . . . . Slashing Weapon 1 | . . . . . 1 Piercing Weapon . | . . . . . . Special Melee Weapon . | . . . . . . Unidentified Prototypes 4 | . . . . . 4 Corrupted Parts 1 | . . . . . 1 System Corruption 4 | . . . . . 4 Parts Lost 20 | . . 2 . . 18 Power 3 | . . 1 . . 2 Propulsion 9 | . . 1 . . 8 Utility 3 | . . . . . 3 Weapon 5 | . . . . . 5 Highest Loss Streak 9 | . . 1 . . 9 To Critical Strikes . | . . . . . . Average Slot Usage (%) 93 | . 94 92 100 100 90 Engine 10 | . 14 9 14 14 8 Leg 24 | . 28 23 28 28 22 Device 6 | . 9 4 . . 10 Storage 11 | . 14 12 14 14 9 Processor 13 | . . 10 14 14 18 Protection 2 | . . . . . 5 Energy Gun 11 | . 11 14 14 12 8 Ballistic Gun 10 | . 14 14 14 15 5 Peak Build Rating 31 | 6 10 10 12 13 31 Average Rating 14 | 4 8 8 10 11 23 On Entrance 8 | . 6 9 10 11 13 Naked Turns . | . . . . . . Heaviest Build 85 | 14 17 85 18 22 29 Greatest Support 30 | 20 26 20 20 20 30 Greatest Overweight (x) 6 | . . 5 . 1 6 Average Overweight (x) . | . . . . . . Largest Inventory Capacity 25 | 8 8 25 10 10 10 Average Capacity 10 | 7 7 11 10 10 10 Most Carried 10 | 5 8 9 10 10 9 Average Carried 7 | 3 7 7 9 9 7 Final Capacity 10 | 8 8 10 10 10 10 Final Carried 10 | 5 8 9 9 10 6 Class Distribution -------------------- 72% | Mutant 25% | Scavenger-Skirmisher Dominant Class ---------------- Mutant | -10/Materials Mutant | -10/Mines Mutant | -10/Exiles Mutant | -9/Mines Scavenger-Skirmisher | -8/Materials Resources | -11 -10 -10 -10 -9 -8 ----------- Run | Yrd Mat Min Exi Min Mat Matter Collected 959 | 171 192 246 . 84 266 Remotely . | . . . . . . Salvage Created 1207 | . 202 265 . 91 649 Parts 74 | . 15 23 . 8 28 Haulers Intercepted . | . . . . . . Recyclers Shooed 3 | . 1 . . 1 1 Parts Field Recycled . | . . . . . . Retrieved Matter . | . . . . . . Parts Self-Destructed . | . . . . . . Prevented . | . . . . . . Kills | -11 -10 -10 -10 -9 -8 ------- Run | Yrd Mat Min Exi Min Mat Combat Hostiles Destroyed 30 | . 5 11 . 3 11 Guns 23 | . 5 11 . 1 6 Cannons 3 | . . . . . 3 AOE 4 | . . . . 2 2 Classes Destroyed 8 | . 4 2 . . 2 Worker 1 | . . . . . 1 Recycler 2 | . 1 . . . 1 Mechanic 1 | . . 1 . . . Operator 1 | . 1 . . . . Watcher 1 | . . . . . 1 Swarmer 9 | . 3 6 . . . Grunt 20 | . 2 4 . 3 11 Assembled 1 | . . 1 . . . Best Kill Streak 4 | . 4 4 . 3 3 Combat Bots Only 4 | . 3 4 . 3 3 Max Kills in Single Turn 2 | . 2 1 . 1 1 Gunslinging 1 | . 1 . . . . Exploded 1 | . . . . 1 1 Melee . | . . . . . . Uniques/NPCs Destroyed . | . . . . . . Combat | -11 -10 -10 -10 -9 -8 -------- Run | Yrd Mat Min Exi Min Mat Hostile Shots Fired 264 | . 18 41 . 11 194 Missed 70 | . 2 13 . 3 52 Damage Taken 2934 | . 207 261 . 151 2315 Core 703 | . 42 52 . 46 563 Absorbed by Shields . | . . . . . . Redirected to Shielding 35 | . . . . . 35 Core Remaining (%) 72 | 100 . . . 44 . Volleys Fired 111 | . 20 30 . 6 55 Largest 2 | . 2 2 . 2 2 Hottest 123 | . 73 73 . 53 123 Shots Fired 188 | . 28 60 . 12 88 Gun 174 | . 28 60 . 10 76 Cannon 10 | . . . . . 10 Launcher 4 | . . . . 2 2 Special . | . . . . . . Kinetic 88 | . 20 30 . 10 28 Thermal 88 | . 8 30 . . 50 Explosive 2 | . . . . 2 . Electromagnetic 10 | . . . . . 10 Robot Hit Streak 14 | . 5 6 . 3 14 Robot Miss Streak 6 | . 2 6 . 6 3 Penetration Max . | . . . . . . Secondary Targets 4 | . 1 1 . . 2 Max Gunslinging Chain 1 | . 1 1 . . 1 Shots Hit Robots 122 | . 22 30 . 7 63 Core Hits 66 | . 13 20 . 10 23 Critical Kills . | . . . . . . Critical Parts Destroyed . | . . . . . . Critical Strikes 2 | . . 1 . . 1 Burn 2 | . . 1 . . 1 Melee Attacks 1 | . . . . . 1 Impact . | . . . . . . Slashing 1 | . . . . . 1 Piercing . | . . . . . . Sneak Attacks . | . . . . . . Combat Hostiles . | . . . . . . Follow-up Attacks . | . . . . . . Damage Inflicted 2578 | . 310 392 . 222 1654 Guns 1787 | . 310 392 . 78 1007 Cannons 224 | . . . . . 224 Explosions 567 | . . . . 144 423 Melee . | . . . . . . Ramming . | . . . . . . Kinetic 856 | . 246 218 . 78 314 Thermal 1059 | . 64 174 . . 821 Explosive 245 | . . . . 144 101 Electromagnetic 418 | . . . . . 418 Impact . | . . . . . . Slashing . | . . . . . . Piercing . | . . . . . . Highest Corruption 4 | . . . . . 4 Average Corruption 4 | . . . . . 4 Corruption Purged . | . . . . . . Corruption Blocked . | . . . . . . Effects 8 | . . . . . 8 Message Errors 1 | . . . . . 1 Matter Fused 2 | . . . . . 2 Energy Discharges 2 | . . . . . 2 Data Loss (minor) 1 | . . . . . 1 Data Loss (major) 1 | . . . . . 1 Misfires 1 | . . . . . 1 Overload Shots . | . . . . . . Overflow Damage 57 | . . . . . 57 Projectiles . | . . . . . . Explosions 57 | . . . . . 57 Melee . | . . . . . . Knockbacks . | . . . . . . Impact . | . . . . . . Kinetic . | . . . . . . Secondary . | . . . . . . Self-Inflicted Damage 116 | . . . . 33 83 Shots 3 | . . . . 1 2 Rammed . | . . . . . . Targets Rammed . | . . . . . . Kicked . | . . . . . . Crushed . | . . . . . . Highest Temperature 400 | . 36 76 . 7 400 Average Temperature 78 | . 15 22 . 5 116 Received Heat Transfer 1554 | . 66 42 . 69 1377 Siege Activations . | . . . . . . Robots Corrupted . | . . . . . . Combat Hostiles . | . . . . . . Parts Fried . | . . . . . . Impact Corruptions . | . . . . . . Robots Melted . | . . . . . . Combat Hostiles . | . . . . . . Parts Melted 1 | . 1 . . . . Heat Transferred 2307 | . 185 592 . . 1530 Parts Sabotaged . | . . . . . . Parts Stolen . | . . . . . . Parts Stripped . | . . . . . . Power Chain Reactions 1 | . . . . . 1 Alert | -11 -10 -10 -10 -9 -8 ------- Run | Yrd Mat Min Exi Min Mat Peak Influence 216 | . 137 170 . 86 216 Initial 53 | . . 53 . . 33 Average 68 | . 55 110 . 8 63 Maximum Alert Level 1 | . . . . . 1 Low Security (%) 99 | 100 100 100 . 100 97 Level 1 . | . . . . . 2 Level 2 . | . . . . . . Level 3 . | . . . . . . Level 4 . | . . . . . . Level 5 . | . . . . . . High Security . | . . . . . . Max Security . | . . . . . . Squads Dispatched 7 | . 2 1 . . 4 Investigation 2 | . 1 . . . 1 Extermination . | . . . . . . Reinforcement 1 | . 1 . . . . Assault 1 | . . 1 . . . Garrison 3 | . . . . . 3 Intercept . | . . . . . . Searches Triggered . | . . . . . . Construction Impeded . | . . . . . . Haulers Reinforced . | . . . . . . Active Scanning Responses . | . . . . . . Cargo Convoy Interrupts . | . . . . . . Stealth | -11 -10 -10 -10 -9 -8 --------- Run | Yrd Mat Min Exi Min Mat Distress Signals 2 | . . . . . 2 Communications Jammed . | . . . . . . Distress Signals . | . . . . . . Times Spotted 49 | . 7 13 . 3 26 Peak Tracking Total 9 | . 4 3 . 3 9 Tactical Retreats 7 | . . 1 . . 6 Traps | -11 -10 -10 -10 -9 -8 ------- Run | Yrd Mat Min Exi Min Mat Traps Triggered 2 | . 2 . . . . Indirectly . | . . . . . . Trap Hack Attempts . | . . . . . . Triggered . | . . . . . . Disarmed . | . . . . . . Reprogrammed . | . . . . . . Reused . | . . . . . . Traps Extracted . | . . . . . . Installed . | . . . . . . Triggered . | . . . . . . Machines | -11 -10 -10 -10 -9 -8 ---------- Run | Yrd Mat Min Exi Min Mat Machines Disabled 2 | . . . . . 2 Max in Single Turn 1 | . . . . . 1 Machines Repaired . | . . . . . . Machines Dismantled . | . . . . . . Machines Sabotaged . | . . . . . . Overloaded Fab Kills . | . . . . . . Hacking | -11 -10 -10 -10 -9 -8 --------- Run | Yrd Mat Min Exi Min Mat Machines Accessed 10 | . 3 1 4 . 2 Terminals 4 | . 2 1 . . 1 Fabricators . | . . . . . . Repair Stations . | . . . . . . Recycling Units 1 | . 1 . . . . Scanalyzers . | . . . . . . Garrison Access 1 | . . . . . 1 Total Hacks 54 | . 7 1 43 . 3 Successful 51 | . 6 1 43 . 1 Failed 3 | . 1 . . . 2 Catastrophic 2 | . 1 . . . 1 Database Lockouts . | . . . . . . Manual 4 | . . . 4 . . Terminals 5 | . 3 1 . . 1 Fabricators . | . . . . . . Repair Stations . | . . . . . . Recycling Units 4 | . 4 . . . . Scanalyzers . | . . . . . . Garrison Access 2 | . . . . . 2 Terminal Hacks 47 | . 2 1 43 . 1 Record 43 | . . 1 42 . . Prototype ID Bank 1 | . 1 . . . . Branch Access Points 1 | . . . . . 1 Scanalyzer Index 1 | . 1 . . . . Derelict Proto ID Bank 1 | . . . 1 . . Fabricator Hacks . | . . . . . . Repair Station Hacks . | . . . . . . Recycling Unit Hacks 4 | . 4 . . . . Recycle Component 1 | . 1 . . . . Process 1 | . 1 . . . . Report Inventory 1 | . 1 . . . . Retrieve Matter 1 | . 1 . . . . Scanalyzer . | . . . . . . Garrison Access Hacks . | . . . . . . Unauthorized Hacks . | . . . . . . Terminals . | . . . . . . Fabricators . | . . . . . . Repair Stations . | . . . . . . Recycling Units . | . . . . . . Scanalyzers . | . . . . . . Garrison Access . | . . . . . . Data Cores Recovered . | . . . . . . Used . | . . . . . . Hacking Detections 2 | . . 1 . . 1 Full Trace Events . | . . . . . . Feedback Events . | . . . . . . Feedback Blocked . | . . . . . . Robot Schematics Acquired . | . . . . . . Robots Built . | . . . . . . Authchips . | . . . . . . Time . | . . . . . . Total Robot Build Rating . | . . . . . . Part Schematics Acquired . | . . . . . . Parts Built . | . . . . . . Authchips . | . . . . . . Time . | . . . . . . Total Part Build Rating . | . . . . . . Parts Repaired . | . . . . . . Time . | . . . . . . Parts Recycled 1 | . 1 . . . . Recycled Matter 168 | . 168 . . . . Retrieved Matter 168 | . 168 . . . . Retrieved Components . | . . . . . . Parts Scanalyzed . | . . . . . . Part Schematics Acquired . | . . . . . . Parts Damaged . | . . . . . . Bothacking | -11 -10 -10 -10 -9 -8 ------------ Run | Yrd Mat Min Exi Min Mat Used RIF Installer . | . . . . . . Robots Hacked . | . . . . . . Non-combat . | . . . . . . Combat . | . . . . . . Robot Hacks Applied . | . . . . . . Relay Couplers Released . | . . . . . . Fabnet Peak Effective % . | . . . . . . Robots Rewired . | . . . . . . Allies Hacked . | . . . . . . Hacks Repelled . | . . . . . . Allies | -11 -10 -10 -10 -9 -8 -------- Run | Yrd Mat Min Exi Min Mat Total Allies 1 | . . 1 . . . Largest Group 1 | . . 1 . . . Highest-Rated Group 31 | . . 31 . . . Highest-Rated Ally 31 | . . 31 . . . Total Orders . | . . . . . . Ally Attacks 9 | . . 9 . . . Total Damage 168 | . . 168 . . . Kills 3 | . . 3 . . . Allies Corrupted . | . . . . . . Allies Melted . | . . . . . . Intel | -11 -10 -10 -10 -9 -8 ------- Run | Yrd Mat Min Exi Min Mat Robot Analysis Total . | . . . . . . Derelict Logs Recovered 2 | . . 1 . 1 . Drone Launches . | . . . . . . Drone Recoveries . | . . . . . . Exploration | -11 -10 -10 -10 -9 -8 ------------- Run | Yrd Mat Min Exi Min Mat Turns Passed 3879 | 93 370 993 578 357 1488 Spaces Moved 1996 | 62 230 558 476 175 495 Core 16 | 4 . . . . 12 Treads . | . . . . . . Legs 1918 | 55 230 499 476 175 483 Wheels 62 | 3 . 59 . . . Hover . | . . . . . . Flight . | . . . . . . Fastest Speed 50 | 50 120 120 120 120 120 Average Speed 129 | 114 120 125 120 176 133 Slowest Speed 350 | 120 120 190 120 190 350 Overloaded Moves . | . . . . . . Propulsion Burnouts . | . . . . . . Robots Hopped . | . . . . . . Cave-ins Triggered . | . . . . . . Exploration Rate (%) 43 | 4 33 91 72 33 30 Regions Visited 5 Branch Regions 3 Pre-discovered Areas 1 | . . . 1 . . Known Exits Taken 3 | . . 1 1 1 . Unknown Exits Taken 2 | 1 1 . . . . Scrap Searched 4 | . . 1 . 3 . Spaces Dug . | . . . . . . Terrain Destroyed 52 | . . . . 21 31 Melee . | . . . . . . Projectile . | . . . . . . AOE 52 | . . . . 21 31 Terrain Rammed . | . . . . . . Walls Destroyed . | . . . . . . Machines Disabled . | . . . . . . Actions | -11 -10 -10 -10 -9 -8 --------- Run | Yrd Mat Min Exi Min Mat Total 3095 | 82 296 790 484 211 1232 Wait 857 | . 22 174 . 24 637 Move 1991 | 61 229 557 475 174 495 Hop . | . . . . . . Pick Up 50 | 10 11 12 4 1 12 Fast Attach 13 | 4 1 1 . 1 6 Attach 21 | 2 1 4 . 1 13 Detach 1 | . . . . . 1 Swap 21 | 2 5 4 1 2 7 Drop 29 | 3 7 8 4 2 5 Fire 111 | . 20 30 . 6 55 Melee 1 | . . . . . 1 Ram . | . . . . . . Kick . | . . . . . . Crush . | . . . . . . Escape Stasis . | . . . . . . Rewire . | . . . . . . Trap . | . . . . . . Miscellaneous . | . . . . . . Route ------- -11/Scrapyard -10/Materials -10/Mines (discovered 3 exits: *Mat x2 / *Exi) -10/Exiles -9/Mines -8/Materials (discovered 1 exit: Sto) History --------- Turn | Location | Event 2 | -11/Scrapyard | Met Revision 17 27 | -11/Scrapyard | Discovered new exit (range 15) 94 | -11/Scrapyard | Entered Materials 319 | -10/Materials | Build established: Mutant 441 | -10/Materials | Discovered new exit (range 9) 464 | -10/Materials | Entered Mines 470 | -10/Mines | Learned Materials emergency access door positions 640 | -10/Mines | Discovered new exit (range 14) 686 | -10/Mines | Identified exit to Materials 751 | -10/Mines | Found a damaged Exp. Sensor Array with a note attached 754 | -10/Mines | Found Prototype Device 897 | -10/Mines | Discovered exit to Materials (range 13) 959 | -10/Mines | Met a Derelict testing a Signal Generator 1125 | -10/Mines | Excavation squad dispatched 1125 | -10/Mines | A large section of the Mines collapsed 1452 | -10/Mines | Deemed a non-threat by the Exiles lab entrance 1452 | -10/Mines | Discovered new exit (range 5) 1456 | -10/Mines | Identified exit to Exiles 1457 | -10/Mines | Entered Exiles 1486 | -10/Exiles | Met 8R-AWN 1514 | -10/Exiles | Met EX-HEX 1578 | -10/Exiles | Met EX-DEC 1603 | -10/Exiles | Learned location of Zion (-7) 1671 | -10/Exiles | Discovered new exit (range 14) 1686 | -10/Exiles | Identified exit to Mines 1760 | -10/Exiles | Met EX-BIN 1789 | -10/Exiles | Aligned with FarCom system 1790 | -10/Exiles | Given EX-Vault access code 1849 | -10/Exiles | Opened EX-Vault 1859 | -10/Exiles | Found Prototype Device 1864 | -10/Exiles | Found Prototype Processor 1875 | -10/Exiles | Identified Modified TNC 1875 | -10/Exiles | Identified Chronowheel 1908 | -10/Exiles | Warned to stay clear of 0b10 Research branches 2035 | -10/Exiles | Stole two prototypes: Modified TNC, Chronowheel 2035 | -10/Exiles | Entered Mines 2069 | -9/Mines | Learned Materials stockpile data 2070 | -9/Mines | Found DCF Scrap (13 items) 2208 | -9/Mines | Assembled infested the area 2334 | -9/Mines | Discovered new exit (range 10) 2363 | -9/Mines | Core integrity fell below 50% 2389 | -9/Mines | Identified exit to Materials 2392 | -9/Mines | Entered Materials 2392 | -8/Materials | Evolved 4 slots: Propulsion x1, Utility x3 2393 | -8/Materials | Identified Exp. Sensor Array 2688 | -8/Materials | Identified exit to Storage 2690 | -8/Materials | Build established: Scavenger-Skirmisher 3143 | -8/Materials | Garrison activated, responded to threat 3286 | -8/Materials | Lost 7 parts (3n1u3w) 3509 | -8/Materials | Build established: Mutant 3805 | -8/Materials | Core integrity fell below 50% 3865 | -8/Materials | Core integrity fell below 20% 3880 | -8/Materials | Destroyed by G-50 Soldier with Heavy Laser Last Messages --------------- U-05 Engineer builds a Door. U-05 Engineer lays Concrete. U-05 Engineer builds a Wall. Aluminum Leg destroyed. Integration Channel disabled. Critical hit (Burn: +37). Lgt. Ion Engine destroyed. Hpw. Shotgun destroyed. Critical hit (Burn: +37). Adv. Beam Rifle destroyed. Aluminum Leg destroyed. G-47 Trooper suffers critical hit (Burn). U-05 Engineer lays Concrete. U-05 Engineer builds a Wall. G-47 Trooper destroyed. U-05 Engineer builds a Wall. Aluminum Leg destroyed. U-05 Engineer builds a Wall. U-05 Engineer lays Concrete. U-05 Engineer builds a Wall. Map ----- +----------------------------------------------------+ | ???? # # ???????????????????????????????? | | ????## # """????????????????????????????? | | ????## # """????????????????????????????? | | ????## # """??""????????????????????????? | | ????## #### # ????S""????????????????????????? | | ????## #### # ????""?????????????????????????? | | ????## #### # ???????????????????????????????? | | ????## #### ##???????????????????????????????? | | ????## #### ##???????????????????????????????? | | ????## #### ####?????????????????????????????? | | ###### #### ########?????????????????????????? | | ###### #### # ########?????w?????????????????? | | # #### # ####### ??????????????????? | | # #### #= ###### ??????????????????? | | # #### #! # # ? ????????????????? | | / + #### "% #uaY # ?????????????????? | | # #### [# !# " # ??????????????????? | | # #### =#% #! "" Y ??????????????? | | ###### #### /# g " # ?????????????????? | | # #####+ ## ""g# ??????g???????????? | | """ # # T # "" # ???????g??????????? | | """ # # !! ### "" # ?????g????????????? | | """!+ # / !! =# ###g "" ##??????????????????? | | %# # !! #####g""" ##??????????????????? | | * # # "" #####! " ##??????????????????? | | # # """ =##?## @g !##??????????????????? | | ! = # # """ ##?#########??????????????????? | | ###### # ############??????????????????? | | ###### ##### ########??????????????????????????? | | ???### ####### ##??????????????????????????? | | ????## ##???#??????????????????????? | | ??#### ##??????#???????????????????? | | ?##?## ##??????????????????????????? | | ???#########+### ##########??#???????????????? | | ???# """"" ## % ###########??????????????????? | | ?#?# """"" ## #! ##??????????????????? | | ???# """"" ## # %[ ##??????????????????? | | ???# ## +%**] ##??????????????????? | | #?## ## # [!* ##??????????????????? | | #??# [ [ ## #* !// ##??????????????????? | | ???##+########### #][!// ##??????????????????? | | #???# ## # !/ ##??????????????????? | | ???## ## # ##??????????????????? | | ##??# ## " "" # = ##??????????????????? | | ?####/## """ G" ######+####??????????????????? | | #?# # "" "" ###### ####??#???????????????? | | ?## # """ ##???# #?????????????????????? | | #?# # "" ######+#####?????????????????? | | ??# # """ ## #?????????????????? | | ??# # """ ## #?????????????????? | +----------------------------------------------------+ Best States ------------- Heat Dissipation 31 Energy Generation 14 Energy Capacity 275 Matter Stores 300 Matter Capacity 300 Sight Range 16 Robot Scan Range 20 Terrain Scan Range 14 Terrain Scan Density 10 Additional Mass Support 6 Power Shielding 33 Evasion (%) 55 Item Schematics ----------------- None Robot Schematics ------------------ None Fabricated ------------ Nothing Alien Tech Used ----------------- None Achievements -------------- Librarian Challenges ------------ None Game ------ Seed GunFlightPick Manual? 0 Play Time 01:30:29 Cumulative 8.0 hours Start 2024.08.13 @ 19:28:35 End 2024.08.13 @ 21:21:18 Sessions 1 Manual Loads 0 Difficulty Rogue Special Mode None Game No. 11 Rogue 11 Adventurer 0 Explorer 0 Win Type - Total 0 Types 0/0/0/0/0/0/0/0/0 Lore% 6 Gallery% 10 Achievement% 10 Wizard Run 0 Options --------- Layout 1 ASCII 0 Keyboard 0 Movement Mouse Keybinds 0 Fullscreen 2 Font 32/SmallcapsGlow Map View 50x35 Zoom Use 0% Tactical HUD 0 Map Filters NONE Filters NONE Steam 1 RUN: 5083a888-6395-499f-ae8c-5f7d61c5846b